Cogmind - Beta 12 @@@ ROGUE MODE // 2023.11.09 @ 14:54:06 Player: art-hropod Result: Self-destructed Performance ------------- Evolutions (1) 500 Regions Visited (3) 600 Robots Destroyed (27) 135 Value Destroyed (725) 725 Prototype IDs (0) 0 Alien Tech Used (0) 0 Bonus (30) 30 TOTAL SCORE: 1990 Bonus ------- Follower Combat Kills 47 Friendly Fire -17 Cogmind --------- Core Integrity 353/400 Matter 207/300 Energy 256/265 System Corruption 0% Temperature Cool (0) Movement Walking (120) Location -9/Materials Parts ------- > --- POWER (1) -------- Improved Ion Engine > --- PROPULSION (4) --- Aluminum Leg Improved Aluminum Leg Improved Aluminum Leg Improved Aluminum Leg > --- UTILITY (2) ------ Improved Heat Sink Small Storage Unit > --- WEAPON (2) ------- Ion Cannon Ion Cannon > --- INVENTORY (8) ---- Flight Unit Flight Unit Flight Unit Flight Unit Heat Sink Medium Armor Plating Mini Grenade Launcher Peak State ------------ > --- POWER ------------ Improved Ion Engine > --- PROPULSION ------- Aluminum Leg Improved Aluminum Leg Improved Aluminum Leg Improved Aluminum Leg > --- UTILITY ---------- Improved Heat Sink Small Storage Unit > --- WEAPON ----------- Ion Cannon Ion Cannon > --- INVENTORY -------- Flight Unit Flight Unit Flight Unit Flight Unit Heat Sink Medium Armor Plating Mini Grenade Launcher [Rating: 19] Favorites ----------- Power Ion Engine Engine Ion Engine Propulsion Aluminum Leg Treads Light Treads Leg Aluminum Leg Utility Small Storage Unit Device Improved Heat Sink Storage Small Storage Unit Weapon Heavy Assault Rifle Energy Gun Spread Laser Energy Cannon Ion Cannon Ballistic Gun Heavy Assault Rifle Build | -11 -10 -10 -9 ------- Run | Jun Mat Min Mat Slots Evolved 2 | . . . 2 Power . | . . . . Propulsion 2 | . . . 2 Utility . | . . . . Weapon . | . . . . Parts Attached 32 | 6 4 5 17 Power 5 | 1 . 1 3 Engine 5 | 1 . 1 3 Core . | . . . . Reactor . | . . . . Propulsion 13 | 2 . 1 10 Treads 2 | . . . 2 Leg 11 | 2 . 1 8 Wheel . | . . . . Hover . | . . . . Flight . | . . . . Utility 4 | 1 2 1 . Device 3 | . 2 1 . Storage 1 | 1 . . . Processor . | . . . . Hackware . | . . . . Protection . | . . . . Artifact . | . . . . Weapon 10 | 2 2 2 4 Energy Gun 2 | 1 . . 1 Energy Cannon 2 | . . . 2 Ballistic Gun 6 | 1 2 2 1 Ballistic Cannon . | . . . . Launcher . | . . . . Special Weapon . | . . . . Impact Weapon . | . . . . Slashing Weapon . | . . . . Piercing Weapon . | . . . . Special Melee Weapon . | . . . . Unidentified Prototypes . | . . . . Parts Lost 3 | . . . 3 Power 1 | . . . 1 Propulsion 2 | . . . 2 Utility . | . . . . Weapon . | . . . . Highest Loss Streak 1 | . . . 1 To Critical Strikes . | . . . . Average Slot Usage (%) 97 | . 98 99 97 Engine 12 | . 14 14 10 Leg 34 | . 28 28 40 Device 12 | . 13 14 11 Storage 12 | . 14 14 11 Energy Gun 2 | . . . 4 Energy Cannon 1 | . . . 2 Ballistic Gun 20 | . 26 27 15 Naked Turns . | . . . . Heaviest Build 25 | 13 18 17 25 Greatest Support 46 | 20 20 20 46 Greatest Overweight (x) 1 | . . . 1 Average Overweight (x) . | . . . . Largest Inventory Capacity 8 | 8 8 8 8 Average Capacity 7 | 7 8 8 8 Most Carried 8 | 6 8 8 8 Average Carried 7 | 3 7 7 7 Final Capacity 8 | 8 8 8 8 Final Carried 8 | 6 8 8 7 Class Distribution -------------------- 55% | Mutant 44% | Scavenger-Mutant Dominant Class ---------------- Mutant | -10/Materials Mutant | -10/Mines Scavenger-Mutant | -9/Materials Resources | -11 -10 -10 -9 ----------- Run | Jun Mat Min Mat Matter Collected 817 | 196 244 162 215 Remotely . | . . . . Salvage Created 1062 | . 428 169 465 Parts 58 | . 21 11 26 Haulers Intercepted 3 | . 2 . 1 Recyclers Shooed 1 | . 1 . . Parts Field Recycled . | . . . . Retrieved Matter . | . . . . Parts Self-Destructed . | . . . . Prevented . | . . . . Kills | -11 -10 -10 -9 ------- Run | Jun Mat Min Mat Combat Hostiles Destroyed 20 | . 6 6 8 Guns 19 | . 6 6 7 Cannons 1 | . . . 1 Classes Destroyed 8 | . 4 1 3 Builder 1 | . . . 1 Hauler 3 | . 2 . 1 Operator 2 | . 1 . 1 Watcher 1 | . 1 . . Swarmer 4 | . . 4 . Grunt 11 | . 6 2 3 Brawler 1 | . . . 1 Sentry 4 | . . . 4 Best Kill Streak 6 | . 6 3 4 Combat Bots Only 4 | . 2 3 4 Max Kills in Single Turn 1 | . 1 1 1 Gunslinging . | . . . . Exploded . | . . . . Melee . | . . . . Uniques/NPCs Destroyed . | . . . . Combat | -11 -10 -10 -9 -------- Run | Jun Mat Min Mat Damage Taken 967 | . 143 236 588 Core 121 | . 13 61 47 Absorbed by Shields . | . . . . Core Remaining (%) 85 | 100 . 70 . Volleys Fired 75 | . 26 16 33 Largest 2 | . 2 2 2 Hottest 120 | . 46 46 120 Shots Fired 150 | . 52 32 66 Gun 142 | . 52 32 58 Cannon 8 | . . . 8 Launcher . | . . . . Special . | . . . . Kinetic 135 | . 52 32 51 Thermal 15 | . . . 15 Explosive . | . . . . Electromagnetic . | . . . . Robot Hit Streak 11 | . 6 11 11 Robot Miss Streak 4 | . 4 4 3 Penetration Max . | . . . . Secondary Targets 1 | . . 1 . Max Gunslinging Chain 1 | . . 1 . Shots Hit Robots 97 | . 31 19 47 Core Hits 46 | . 13 8 25 Critical Kills . | . . . . Critical Parts Destroyed 1 | . . 1 . Critical Strikes 1 | . . 1 . Destroy 1 | . . 1 . Melee Attacks . | . . . . Impact . | . . . . Slashing . | . . . . Piercing . | . . . . Sneak Attacks . | . . . . Combat Hostiles . | . . . . Follow-up Attacks . | . . . . Damage Inflicted 1569 | . 515 293 761 Guns 1455 | . 515 293 647 Cannons 114 | . . . 114 Explosions . | . . . . Melee . | . . . . Ramming . | . . . . Kinetic 1361 | . 515 293 553 Thermal 208 | . . . 208 Explosive . | . . . . Electromagnetic . | . . . . Impact . | . . . . Slashing . | . . . . Piercing . | . . . . Highest Corruption . | . . . . Average Corruption . | . . . . Corruption Purged . | . . . . Corruption Blocked . | . . . . Overload Shots . | . . . . Overflow Damage . | . . . . Projectiles . | . . . . Explosions . | . . . . Melee . | . . . . Knockbacks . | . . . . Impact . | . . . . Kinetic . | . . . . Secondary . | . . . . Self-Inflicted Damage . | . . . . Shots . | . . . . Rammed . | . . . . Targets Rammed . | . . . . Kicked . | . . . . Crushed . | . . . . Highest Temperature 24 | . . . 24 Average Temperature 10 | . . . 10 Received Heat Transfer 363 | . 78 60 225 Siege Activations . | . . . . Robots Corrupted . | . . . . Combat Hostiles . | . . . . Parts Fried . | . . . . Impact Corruptions . | . . . . Robots Melted . | . . . . Combat Hostiles . | . . . . Parts Melted 2 | . . . 2 Heat Transferred 305 | . . . 305 Parts Sabotaged . | . . . . Parts Stolen . | . . . . Parts Stripped . | . . . . Power Chain Reactions . | . . . . Missiles Intercepted . | . . . . Alert | -11 -10 -10 -9 ------- Run | Jun Mat Min Mat Peak Influence 333 | . 227 333 316 Initial 129 | . . 88 129 Average 177 | . 96 213 220 Maximum Alert Level 1 | . 1 1 1 Low Security (%) 57 | 100 92 45 41 Level 1 42 | . 7 54 58 Level 2 . | . . . . Level 3 . | . . . . Level 4 . | . . . . Level 5 . | . . . . High Security . | . . . . Max Security . | . . . . Squads Dispatched 2 | . 1 . 1 Investigation . | . . . . Extermination . | . . . . Reinforcement 2 | . 1 . 1 Assault . | . . . . Garrison . | . . . . Intercept . | . . . . Searches Triggered . | . . . . Construction Impeded . | . . . . Haulers Reinforced . | . . . . Active Scanning Responses . | . . . . Cargo Convoy Interrupts . | . . . . Stealth | -11 -10 -10 -9 --------- Run | Jun Mat Min Mat Distress Signals 2 | . 1 . 1 Communications Jammed . | . . . . Distress Signals . | . . . . Times Spotted 33 | . 8 9 16 Peak Tracking Total 5 | . 3 3 5 Tactical Retreats 4 | . 1 1 2 Traps | -11 -10 -10 -9 ------- Run | Jun Mat Min Mat Traps Triggered 1 | . . . 1 Indirectly . | . . . . Trap Hack Attempts . | . . . . Triggered . | . . . . Disarmed . | . . . . Reprogrammed . | . . . . Reused . | . . . . Traps Extracted . | . . . . Installed . | . . . . Triggered . | . . . . Machines | -11 -10 -10 -9 ---------- Run | Jun Mat Min Mat Machines Disabled 1 | . . 1 . Max in Single Turn 1 | . . 1 . Machines Repaired . | . . . . Machines Sabotaged . | . . . . Overloaded Fab Kills . | . . . . Hacking | -11 -10 -10 -9 --------- Run | Jun Mat Min Mat Machines Accessed 6 | . . . 6 Terminals 6 | . . . 6 Fabricators . | . . . . Repair Stations . | . . . . Recycling Units . | . . . . Scanalyzers . | . . . . Garrison Access . | . . . . Total Hacks 12 | . . . 12 Successful 2 | . . . 2 Failed 10 | . . . 10 Catastrophic 3 | . . . 3 Database Lockouts . | . . . . Manual 8 | . . . 8 Terminals 12 | . . . 12 Fabricators . | . . . . Repair Stations . | . . . . Recycling Units . | . . . . Scanalyzers . | . . . . Garrison Access . | . . . . Terminal Hacks . | . . . . Fabricator Hacks . | . . . . Repair Station Hacks . | . . . . Recycling Unit Hacks . | . . . . Scanalyzer . | . . . . Garrison Access Hacks . | . . . . Unauthorized Hacks 2 | . . . 2 Terminals 2 | . . . 2 Botnet 2 | . . . 2 Fabricators . | . . . . Repair Stations . | . . . . Recycling Units . | . . . . Scanalyzers . | . . . . Garrison Access . | . . . . Data Cores Recovered . | . . . . Used . | . . . . Hacking Detections 6 | . . . 6 Full Trace Events . | . . . . Feedback Events . | . . . . Feedback Blocked . | . . . . Robot Schematics Acquired . | . . . . Robots Built . | . . . . Authchips . | . . . . Time . | . . . . Total Robot Build Rating . | . . . . Part Schematics Acquired . | . . . . Parts Built . | . . . . Authchips . | . . . . Time . | . . . . Total Part Build Rating . | . . . . Parts Repaired . | . . . . Time . | . . . . Parts Recycled . | . . . . Recycled Matter . | . . . . Retrieved Matter . | . . . . Retrieved Components . | . . . . Parts Scanalyzed . | . . . . Part Schematics Acquired . | . . . . Parts Damaged . | . . . . Bothacking | -11 -10 -10 -9 ------------ Run | Jun Mat Min Mat Used RIF Installer . | . . . . Robots Hacked . | . . . . Non-combat . | . . . . Combat . | . . . . Robot Hacks Applied . | . . . . Relay Couplers Released . | . . . . Fabnet Peak Effective % . | . . . . Robots Rewired . | . . . . Allies Hacked . | . . . . Hacks Repelled . | . . . . Allies | -11 -10 -10 -9 -------- Run | Jun Mat Min Mat Total Allies 3 | . . 3 . Largest Group 3 | . . 3 2 Highest-Rated Group 40 | . . 40 32 Highest-Rated Ally 16 | . . 16 16 Total Orders . | . . . . Ally Attacks 22 | . . 5 17 Total Damage 229 | . . 38 191 Kills 5 | . . 3 2 Allies Corrupted . | . . . . Allies Melted . | . . . . Intel | -11 -10 -10 -9 ------- Run | Jun Mat Min Mat Robot Analysis Total . | . . . . Derelict Logs Recovered . | . . . . Drone Launches . | . . . . Drone Recoveries . | . . . . Exploration | -11 -10 -10 -9 ------------- Run | Jun Mat Min Mat Turns Passed 1330 | 78 312 276 664 Spaces Moved 780 | 54 174 167 385 Core 6 | 6 . . . Treads 11 | . . . 11 Legs 763 | 48 174 167 374 Wheels . | . . . . Hover . | . . . . Flight . | . . . . Fastest Speed 50 | 50 120 120 120 Average Speed 120 | 112 120 120 122 Slowest Speed 190 | 120 120 120 190 Overloaded Moves . | . . . . Propulsion Burnouts . | . . . . Robots Hopped . | . . . . Cave-ins Triggered . | . . . . Exploration Rate (%) 28 | 5 28 43 36 Regions Visited 3 Branch Regions 1 Pre-discovered Areas . | . . . . Known Exits Taken . | . . . . Unknown Exits Taken 3 | 1 1 1 . Scrap Searched 1 | . . 1 . Spaces Dug . | . . . . Terrain Destroyed 1 | . . . 1 Melee . | . . . . Projectile 1 | . . . 1 AOE . | . . . . Terrain Rammed . | . . . . Walls Destroyed . | . . . . Machines Disabled . | . . . . Actions | -11 -10 -10 -9 --------- Run | Jun Mat Min Mat Total 1030 | 71 228 213 518 Wait 78 | . 7 15 56 Move 777 | 53 173 166 385 Hop . | . . . . Pick Up 41 | 12 10 5 14 Fast Attach 2 | . 1 . 1 Attach 27 | 6 3 2 16 Detach 2 | . . . 2 Swap 3 | . . 3 . Drop 25 | . 8 6 11 Fire 75 | . 26 16 33 Melee . | . . . . Ram . | . . . . Kick . | . . . . Crush . | . . . . Escape Stasis . | . . . . Rewire . | . . . . Trap . | . . . . Miscellaneous . | . . . . Route ------- -11/Junkyard -10/Materials -10/Mines -9/Materials History --------- Turn | Location | Event 5 | -11/Junkyard | Discovered new exit (range 16) 79 | -11/Junkyard | Entered Materials 317 | -10/Materials | Build established: Mutant 381 | -10/Materials | Discovered new exit (range 9) 391 | -10/Materials | Entered Mines 582 | -10/Mines | Assisted by bots powering up and referring to "LRC-V3" 658 | -10/Mines | Discovered new exit (range 6) 667 | -10/Mines | Entered Materials 667 | -9/Materials | Accompanied by 2 allies 667 | -9/Materials | Evolved 2 slots: Propulsion x2 978 | -9/Materials | Build established: Scavenger-Mutant 1331 | -9/Materials | Self-destructed Last Messages --------------- 01272_ Aluminum Leg destroyed. 01273_ Y-45 Defender destroyed. 01280_ Acquired 57 matter. 01284_ Acquired Lgt. Treads. 01311_ Weight Redist. System melted. 01311_ Transport Network Coupler melted. 01311_ A-02 Transporter destroyed. 01312_ K-01 Serf collects debris. 01316_ Dropped Aluminum Leg. 01316_ K-01 Serf collects debris. 01316_ Dropped Lgt. Treads. 01317_ Acquired Imp. Aluminum Leg. 01320_ K-01 Serf collects debris. 01321_ Acquired Aluminum Leg. 01324_ Acquired Imp. Aluminum Leg. 01324_ K-01 Serf collects debris. 01329_ Dropped Aluminum Leg. 01329_ Acquired Imp. Aluminum Leg. 01330_ U-05 Engineer builds a Wall. 01331_ K-01 Serf collects debris. Map ----- +----------------------------------------------------+ | | | | | | | | | | | | | | | | | | | | | | | | | ?????????????????????????????????????????????????? | | ?????????????????????????????????????????######### | | ?????????????????????????????????????????# """"" | | ?????????????????????????????????????????# ""T"" | | ?????????????????????????????????????????# [ | | ?????????????????????????????????????????# """ """ | | ??????????????????????#######????????????# """ """ | | ????????????????####### #????????????# """ """ | | ????????????????? #????????????# | | ??????????????????? #????????????# [ | | ????????????????????? #????????????#####+### | | ??????????????????????# #??????????????# # | | ????????????????######## = ##??????????????# | | ????????????????# ==#=@ #####???????????# | | ????????????????# " #u== *] #???????????# | | ????????????????# """ +=[ ![][#???????????# # | | ????????????????# """ #u k !!#???????????## ## | | ????????????????# """ # t !!#????????????# # | | ????????????????# "" [# //#????????????# # | | ????????????????# """ # //#????????????# + | | ????????????????# "" |# #####????????????# # | | ????????????????# """ # #????????????????# ## | | ????????????????# " # ################## ## | | ????????????????#?? # | | ??????????????????? # | | ??????????????????? # g | | ???????????????????##### ####################### | | ????????????????######## #?????????????????????? | | ????????????????# # #?????????????????????? | | ????????????????# "# #?????????????????????? | | ????????????????# """ "# #??#######????????????? | | ????????????????# """ "# #??!!! #????????????? | | ????????????????# """ T# #? !! #????????????? | | ????????????????# "# #? !! #????????????? | | ????????????????# """ "# # #????????????? | | ????????????????# """ "# # #????????????? | | ????????????????# """ + + """ #??????# # | | ????????????????# # # """ #??????# | +----------------------------------------------------+ Best States ------------- Heat Dissipation 47 Energy Generation 12 Energy Capacity 265 Matter Stores 300 Matter Capacity 300 Sight Range 16 Terrain Scan Density 10 Evasion (%) 55 Recoil Reduction 2 Item Schematics ----------------- None Robot Schematics ------------------ None Fabricated ------------ Nothing Alien Tech Used ----------------- None Achievements -------------- None Challenges ------------ None Game ------ Seed DimensionalPointRegenerator Manual? 0 Play Time 00:25:11 Cumulative 65.1 hours Start 2023.11.09 @ 12:55:48 End 2023.11.09 @ 14:54:06 Sessions 3 Manual Loads 0 Difficulty Rogue Special Mode None Game No. 86 Rogue 70 Adventurer 9 Explorer 7 Win Type - Total 4 Types 4/0/0/0/0/0/0/0/0 Lore% 18 Gallery% 42 Achievement% 32 Wizard Run 0 Options --------- ASCII 0 Keyboard 0 Movement Mouse Keybinds 0 Fullscreen 1 Font 32/Terminus Map View 63x52 Tactical HUD 1 Map Filters NONE Filters NONE Steam 1 RUN: 1e737efc-2680-42fb-afaf-6bf043d916d4